[Event "GER-ch Youth-U12 2024"]
[Site "Willingen"]
[Date "2024.05.19"]
[Round "1"]
[White "Yozgyur, Ediz"]
[Black "Gersemann, Karl"]
[Result "0-1"]
[ECO "B51"]
[WhiteElo "1789"]
[BlackElo "1729"]
[Annotator "NA RC"]
[PlyCount "82"]
[EventDate "2022.06.05"]
[EventType "swiss"]
[EventRounds "9"]
[EventCountry "GER"]
[SourceTitle "playchess.com"]
[Source "ChessBase"]
[SourceQuality "1"]
[TimeControl "40/4500+30:900+30"]

1. e4 {[%emt 0:00:00]} c5 {[%emt 0:00:00]} 2. Nf3 {[%emt 0:00:00]} d6 {[%emt 0:00:00]} 3. Bb5+ {[%emt 0:00:00]} Nd7 {[%emt 0:00:00]} 4. d4 {[%emt 0:00:00]} cxd4 5. Nxd4 {[%emt 0:00:00]} a6 {[%emt 0:00:00]} 6. Bxd7+ {[%emt 0:00:00]} Bxd7 {[%emt 0:00:00]} 7. Be3 {[%emt 0:00:30]} Nf6 {[%emt 0:00:00]} 8. Nd2 {[%emt 0:05:26]} Ng4 {[%emt 0:00:00]} 9. O-O {[%emt 0:02:10]} g6 {[%emt 0:00:00]} 10. h3 {[%emt 0:09:54]} Nxe3 {[%emt 0:00:00]} 11. fxe3 {[%emt 0:00:08]} Bg7 {[%emt 0:00:00]} 12. Qf3 {[%emt 0:00:41]} O-O {[%emt 0:00:00]} 13. Rad1 {[%emt 0:04:18]} Qc7 {[%emt 0:03:16]} 14. c3 {[%emt 0:01:25]} e5 {[%emt 0:01:19]} 15. N4b3 {[%emt 0:01:30]} a5 {[%emt 0:00:09]} 16. c4 {[%emt 0:05:49]} a4 {[%emt 0:02:55]} 17. Nc1 {[%emt 0:00:34]} Bc6 {[%emt 0:02:13]} 18. Qg4 {[%emt 0:04:50]} Qb6 {[%emt 0:00:29]} 19. Qe2 {[%emt 0:03:53]} Qxb2 {[%emt 0:02:11]} 20. h4 {[%emt 0:10:34]} Qb6 {[%emt 0:04:00]} 21. h5 {[%emt 0:03:03]} Bh6 {[%emt 0:00:54]} 22. Rf3 {[%emt 0:04:08]} Bd7 {[%emt 0:03:14]} 23. Rg3 {[%emt 0:01:05]} Bf4 {[%emt 0:00:28]} 24. c5 {[%emt 0:05:31]} Qxc5 {[%emt 0:00:16]} 25. Nd3 {[%emt 0:00:05]} Qa7 {[%emt 0:00:23]} 26. Nxf4 {[%emt 0:00:07]} exf4 {[%emt 0:00:12]} 27. Rg5 {[%emt 0:00:30]} Qxe3+ {[%emt 0:03:09]} 28. Qxe3 {[%emt 0:00:41]} fxe3 {[%emt 0:00:06]} 29. Nc4 {[%emt 0:00:33]} Be6 {[%emt 0:01:04]} 30. Nxe3 {[%emt 0:01:14]} Bxa2 {[%emt 0:00:11]} 31. Rxd6 {[%emt 0:00:54]} Bb1 {[%emt 0:01:01]} 32. Ng4 {[%emt 0:03:08]} a3 {[%emt 0:05:04]} 33. hxg6 {[%emt 0:01:22]} hxg6 {[%emt 0:05:17]} 34. Nh6+ {[%emt 0:00:34]} Kh7 {[%emt 0:02:36]} 35. Nf5 {[%emt 0:01:16]} Bxe4 {[%emt 0:01:34]} 36. Ng3 {[%emt 0:02:10]} a2 {[%emt 0:00:28]} 37. Nxe4 {[%emt 0:00:38]} a1=Q+ {[%emt 0:00:09]} 38. Kh2 {[%emt 0:00:06]} Kg7 {[%emt 0:00:21]} 39. Ng3 {[%emt 0:00:37]} Rh8+ {[%emt 0:00:12]} 40. Nh5+ {[%emt 0:00:14]} Rxh5+ {[%emt 0:00:13]} 41. Rxh5 {[%emt 0:15:05]} gxh5 {[%emt 0:15:10]} 0-1

[Event "GER-ch Youth-U12 2024"]
[Site "Willingen"]
[Date "2024.05.19"]
[Round "1"]
[White "Noll, Raphael"]
[Black "Shevchenko, Igor"]
[Result "0-1"]
[ECO "B15"]
[WhiteElo "1775"]
[BlackElo "1758"]
[Annotator "NA RC"]
[PlyCount "120"]
[EventDate "2022.06.05"]
[EventType "swiss"]
[EventRounds "9"]
[EventCountry "GER"]
[SourceTitle "playchess.com"]
[Source "ChessBase"]
[SourceQuality "1"]
[TimeControl "40/4500+30:900+30"]

1. e4 {[%emt 0:00:00]} c6 {[%emt 0:00:00]} 2. d4 {[%emt 0:00:00]} d5 {[%emt 0:00:00]} 3. Nd2 {[%emt 0:00:00]} dxe4 {[%emt 0:00:00]} 4. Nxe4 {[%emt 0:00:00]} Nf6 {[%emt 0:00:00]} 5. Nxf6+ {[%emt 0:00:00]} exf6 {[%emt 0:00:00]} 6. h3 {[%emt 0:00:00]} Bd6 {[%emt 0:00:00]} 7. Nf3 {[%emt 0:00:00]} O-O {[%emt 0:00:00]} 8. Be2 {[%emt 0:00:00]} Re8 {[%emt 0:00:45]} 9. O-O {[%emt 0:00:00]} Nd7 {[%emt 0:01:18]} 10. Be3 {[%emt 0:00:00]} Nf8 {[%emt 0:01:28]} 11. Qd2 {[%emt 0:08:50]} Bc7 {[%emt 0:01:35]} 12. Rad1 {[%emt 0:05:34]} Ng6 {[%emt 0:03:27]} 13. Bc4 {[%emt 0:02:29]} Qd6 {[%emt 0:01:19]} 14. Rfe1 {[%emt 0:04:24]} Bf5 {[%emt 0:03:00]} 15. Bd3 {[%emt 0:01:42]} Bxd3 {[%emt 0:00:33]} 16. Qxd3 {[%emt 0:00:00]} Rad8 {[%emt 0:02:24]} 17. Bd2 {[%emt 0:08:16]} Nh4 {[%emt 0:02:34]} 18. g3 {[%emt 0:02:10]} Nxf3+ {[%emt 0:00:27]} 19. Qxf3 {[%emt 0:00:22]} Qxd4 {[%emt 0:06:31]} 20. Rxe8+ {[%emt 0:09:58]} Rxe8 {[%emt 0:00:38]} 21. Ba5 {[%emt 0:01:50]} Qe5 {[%emt 0:06:54]} 22. Re1 {[%emt 0:01:24]} Qxe1+ {[%emt 0:00:05]} 23. Bxe1 {[%emt 0:00:05]} Rxe1+ {[%emt 0:00:03]} 24. Kg2 {[%emt 0:00:10]} Bb6 {[%emt 0:07:59]} 25. Qd3 {[%emt 0:01:55]} g6 {[%emt 0:02:24]} 26. Qd2 {[%emt 0:01:39]} Re7 {[%emt 0:01:26]} 27. b4 {[%emt 0:01:03]} Kg7 {[%emt 0:00:25]} 28. c4 {[%emt 0:00:41]} Bc7 {[%emt 0:00:38]} 29. a4 {[%emt 0:01:11]} a6 {[%emt 0:00:35]} 30. Kf3 {[%emt 0:01:49]} f5 {[%emt 0:00:49]} 31. Qd4+ {[%emt 0:01:32]} Be5 {[%emt 0:00:05]} 32. Qc5 {[%emt 0:01:14]} Bf6 {[%emt 0:00:18]} 33. g4 {[%emt 0:03:32]} fxg4+ {[%emt 0:00:13]} 34. hxg4 {[%emt 0:00:51]} h6 {[%emt 0:00:44]} 35. Kg2 {[%emt 0:01:04]} Rd7 {[%emt 0:00:13]} 36. a5 {[%emt 0:04:45]} Bd4 {[%emt 0:00:13]} 37. Qxd4+ {[%emt 0:02:56]} Rxd4 {[%emt 0:00:01]} 38. b5 {[%emt 0:00:09]} Rxc4 {[%emt 0:00:06]} 39. bxa6 {[%emt 0:00:09]} bxa6 {[%emt 0:00:01]} 40. Kf3 {[%emt 0:00:13]} Ra4 {[%emt 0:00:05]} 41. Ke3 {[%emt 0:15:03]} Rxa5 {[%emt 0:15:45]} 42. Kd4 {[%emt 0:00:06]} Rd5+ {[%emt 0:00:08]} 43. Kc4 {[%emt 0:00:05]} a5 {[%emt 0:00:03]} 44. Kb3 {[%emt 0:00:05]} Kf6 {[%emt 0:00:04]} 45. f4 {[%emt 0:00:05]} Rd4 {[%emt 0:00:05]} 46. g5+ {[%emt 0:00:04]} hxg5 {[%emt 0:00:04]} 47. fxg5+ {[%emt 0:00:05]} Ke5 {[%emt 0:00:05]} 48. Kc3 {[%emt 0:00:07]} a4 {[%emt 0:00:04]} 49. Kb2 {[%emt 0:00:06]} Rd3 {[%emt 0:00:07]} 50. Ka2 {[%emt 0:00:04]} Kd4 {[%emt 0:00:03]} 51. Kb2 {[%emt 0:00:05]} Kc4 {[%emt 0:00:05]} 52. Ka2 {[%emt 0:00:07]} Rd2+ {[%emt 0:00:17]} 53. Kb1 {[%emt 0:00:11]} Kb3 {[%emt 0:00:07]} 54. Kc1 {[%emt 0:00:04]} a3 {[%emt 0:00:04]} 55. Kxd2 {[%emt 0:00:05]} a2 {[%emt 0:00:05]} 56. Kd3 {[%emt 0:00:02]} a1=Q {[%emt 0:00:07]} 57. Ke4 {[%emt 0:00:02]} Kc4 {[%emt 0:00:08]} 58. Kf4 {[%emt 0:00:07]} Kd4 {[%emt 0:00:06]} 59. Kf3 {[%emt 0:00:11]} Qf1+ {[%emt 0:00:02]} 60. Kg4 {[%emt 0:00:09]} Ke4 {[%emt 0:00:10]} 0-1

[Event "GER-ch Youth-U12 2024"]
[Site "Willingen"]
[Date "2024.05.19"]
[Round "1"]
[White "Zimmer, Tim"]
[Black "Grabowski, Joshua"]
[Result "1/2-1/2"]
[ECO "C01"]
[WhiteElo "1772"]
[BlackElo "1532"]
[Annotator "NA RC"]
[PlyCount "65"]
[EventDate "2022.06.05"]
[EventType "swiss"]
[EventRounds "9"]
[EventCountry "GER"]
[SourceTitle "playchess.com"]
[Source "ChessBase"]
[SourceQuality "1"]
[TimeControl "40/4500+30:900+30"]

1. e4 {[%emt 0:00:00]} e6 {[%emt 0:00:00]} 2. d4 {[%emt 0:00:00]} d5 {[%emt 0:00:00]} 3. exd5 {[%emt 0:00:00]} exd5 {[%emt 0:00:00]} 4. Bd3 {[%emt 0:00:00]} Bd6 {[%emt 0:00:00]} 5. Nf3 {[%emt 0:00:00]} Ne7 {[%emt 0:00:00]} 6. O-O {[%emt 0:00:00]} O-O {[%emt 0:00:00]} 7. Nc3 {[%emt 0:00:00]} Nbc6 {[%emt 0:00:00]} 8. Nb5 {[%emt 0:00:00]} Bf5 {[%emt 0:00:00]} 9. Bg5 {[%emt 0:00:00]} f6 {[%emt 0:00:00]} 10. Nxd6 {[%emt 0:00:00]} Qxd6 {[%emt 0:00:00]} 11. Bh4 {[%emt 0:00:00]} Qb4 {[%emt 0:00:00]} 12. Re1 {[%emt 0:23:11]} Rfe8 {[%emt 0:00:00]} 13. Bg3 {[%emt 0:07:47]} Nxd4 {[%emt 0:00:00]} 14. Nxd4 {[%emt 0:05:56]} Qxd4 {[%emt 0:00:00]} 15. Rxe7 {[%emt 0:01:54]} Rxe7 {[%emt 0:00:00]} 16. Bxf5 {[%emt 0:00:07]} Qxd1+ {[%emt 0:00:00]} 17. Rxd1 {[%emt 0:00:08]} c6 {[%emt 0:00:00]} 18. Bd6 {[%emt 0:01:09]} Re2 {[%emt 0:00:00]} 19. Kf1 {[%emt 0:04:46]} Ree8 {[%emt 0:01:13]} 20. Re1 {[%emt 0:07:17]} Kf7 {[%emt 0:01:26]} 21. Re3 {[%emt 0:05:20]} g6 {[%emt 0:01:11]} 22. Bg4 {[%emt 0:01:41]} f5 {[%emt 0:03:35]} 23. Bf3 {[%emt 0:03:36]} Rxe3 {[%emt 0:00:21]} 24. fxe3 {[%emt 0:00:02]} h5 {[%emt 0:01:07]} 25. Ke2 {[%emt 0:00:49]} Ke6 {[%emt 0:00:10]} 26. Bc7 {[%emt 0:01:15]} Rc8 {[%emt 0:00:22]} 27. Bf4 {[%emt 0:01:57]} b5 {[%emt 0:00:44]} 28. Kd3 {[%emt 0:01:11]} c5 {[%emt 0:00:51]} 29. h3 {[%emt 0:00:29]} a6 {[%emt 0:01:03]} 30. g4 {[%emt 0:00:41]} hxg4 {[%emt 0:00:14]} 31. hxg4 {[%emt 0:00:29]} a5 {[%emt 0:00:50]} 32. c3 {[%emt 0:03:07]} a4 {[%emt 0:00:31]} 33. a3 {[%emt 0:04:48]} 1/2-1/2

[Event "GER-ch Youth-U12 2024"]
[Site "Willingen"]
[Date "2024.05.19"]
[Round "1"]
[White "Fadeev, Justin Michael"]
[Black "Moskalenko, Michael"]
[Result "1-0"]
[ECO "B42"]
[WhiteElo "1762"]
[BlackElo "1574"]
[Annotator "NA RC"]
[PlyCount "79"]
[EventDate "2022.06.05"]
[EventType "swiss"]
[EventRounds "9"]
[EventCountry "GER"]
[SourceTitle "playchess.com"]
[Source "ChessBase"]
[SourceQuality "1"]
[TimeControl "40/4500+30:900+30"]

1. e4 {[%emt 0:00:00]} c5 {[%emt 0:00:00]} 2. Nf3 {[%emt 0:00:00]} e6 {[%emt 0:00:00]} 3. d4 {[%emt 0:00:00]} cxd4 {[%emt 0:00:00]} 4. Nxd4 {[%emt 0:00:00]} a6 {[%emt 0:00:00]} 5. Bd3 {[%emt 0:00:00]} Qc7 {[%emt 0:00:00]} 6. O-O {[%emt 0:00:00]} Nf6 {[%emt 0:00:00]} 7. Qe2 {[%emt 0:00:00]} Bc5 {[%emt 0:00:00]} 8. Nb3 {[%emt 0:00:00]} Ba7 {[%emt 0:00:00]} 9. e5 {[%emt 0:05:28]} Nd5 {[%emt 0:00:53]} 10. Kh1 {[%emt 0:00:59]} d6 {[%emt 0:01:38]} 11. Qg4 {[%emt 0:13:07]} Nc6 {[%emt 0:19:47]} 12. Qxg7 {[%emt 0:04:05]} Rf8 {[%emt 0:03:07]} 13. Bh6 {[%emt 0:00:32]} Qe7 {[%emt 0:19:39]} 14. Qxf8+ {[%emt 0:05:42]} Qxf8 {[%emt 0:00:05]} 15. Bxf8 {[%emt 0:00:04]} Kxf8 {[%emt 0:00:05]} 16. exd6 {[%emt 0:00:51]} f5 {[%emt 0:01:10]} 17. Nc3 {[%emt 0:05:26]} Nf4 {[%emt 0:00:24]} 18. Rad1 {[%emt 0:02:13]} Bd7 {[%emt 0:01:44]} 19. Ne2 {[%emt 0:05:59]} Ng6 {[%emt 0:03:32]} 20. c4 {[%emt 0:16:23]} Kf7 {[%emt 0:05:32]} 21. f4 {[%emt 0:01:21]} Nh4 {[%emt 0:01:51]} 22. a3 {[%emt 0:02:57]} Rg8 {[%emt 0:00:48]} 23. Ng3 {[%emt 0:02:12]} Nd8 {[%emt 0:13:22]} 24. Be2 {[%emt 0:05:19]} Kf8 {[%emt 0:03:46]} 25. Bf3 {[%emt 0:01:37]} Nf7 {[%emt 0:06:02]} 26. Bxb7 {[%emt 0:02:27]} Nh6 {[%emt 0:00:46]} 27. c5 {[%emt 0:02:51]} Ba4 {[%emt 0:00:39]} 28. d7 {[%emt 0:00:58]} Ke7 {[%emt 0:00:29]} 29. d8=Q+ {[%emt 0:02:12]} Rxd8 {[%emt 0:00:10]} 30. Rxd8 {[%emt 0:00:13]} Kxd8 {[%emt 0:00:06]} 31. Nd4 {[%emt 0:01:36]} Kc7 {[%emt 0:01:18]} 32. Bxa6 {[%emt 0:01:00]} Kb8 {[%emt 0:00:52]} 33. b4 {[%emt 0:01:16]} Ng4 {[%emt 0:01:45]} 34. Bb5 {[%emt 0:00:35]} Bxb5 {[%emt 0:01:39]} 35. Nxb5 {[%emt 0:00:05]} Ne3 {[%emt 0:00:34]} 36. Re1 {[%emt 0:01:15]} Nhxg2 {[%emt 0:00:34]} 37. Re2 {[%emt 0:00:12]} Kb7 {[%emt 0:00:27]} 38. Nxa7 {[%emt 0:00:08]} Kxa7 {[%emt 0:00:07]} 39. Rxg2 {[%emt 0:00:04]} Nxg2 {[%emt 0:00:07]} 40. Kxg2 {[%emt 0:00:03]} 1-0

[Event "GER-ch Youth-U12 2024"]
[Site "Willingen"]
[Date "2024.05.19"]
[Round "1"]
[White "Jahn, Gustav"]
[Black "Prashanthakumar, Arnesh"]
[Result "1-0"]
[ECO "C54"]
[WhiteElo "1755"]
[BlackElo "1634"]
[Annotator "NA RC"]
[PlyCount "59"]
[EventDate "2022.06.05"]
[EventType "swiss"]
[EventRounds "9"]
[EventCountry "GER"]
[SourceTitle "playchess.com"]
[Source "ChessBase"]
[SourceQuality "1"]
[TimeControl "40/4500+30:900+30"]

1. e4 {[%emt 0:00:00]} e5 {[%emt 0:00:00]} 2. Nf3 {[%emt 0:00:00]} Nc6 {[%emt 0:00:00]} 3. Bc4 {[%emt 0:00:00]} Bc5 {[%emt 0:00:00]} 4. c3 {[%emt 0:00:00]} Nf6 {[%emt 0:00:00]} 5. d3 {[%emt 0:00:00]} d6 {[%emt 0:00:00]} 6. O-O {[%emt 0:00:00]} Be6 {[%emt 0:00:00]} 7. Bb3 {[%emt 0:00:00]} O-O {[%emt 0:00:00]} 8. Bc2 {[%emt 0:00:00]} h6 {[%emt 0:00:00]} 9. d4 {[%emt 0:00:00]} Bc4 {[%emt 0:00:00]} 10. dxc5 {[%emt 0:00:00]} Bxf1 {[%emt 0:00:00]} 11. Qxf1 {[%emt 0:00:00]} Qd7 {[%emt 0:02:25]} 12. Na3 {[%emt 0:00:00]} Rae8 {[%emt 0:02:33]} 13. cxd6 {[%emt 0:00:00]} Qxd6 {[%emt 0:06:07]} 14. Be3 {[%emt 0:00:00]} Ng4 {[%emt 0:04:16]} 15. Qe2 {[%emt 0:00:00]} Nxe3 {[%emt 0:01:48]} 16. fxe3 {[%emt 0:00:00]} Ne7 {[%emt 0:03:02]} 17. Nc4 {[%emt 0:01:53]} Qe6 {[%emt 0:05:07]} 18. Ncxe5 {[%emt 0:00:31]} Ng6 {[%emt 0:03:34]} 19. Bb3 {[%emt 0:02:09]} Qb6 {[%emt 0:03:10]} 20. Nd7 {[%emt 0:02:51]} Qc6 {[%emt 0:02:22]} 21. Nxf8 {[%emt 0:01:28]} Kxf8 {[%emt 0:01:01]} 22. Rf1 {[%emt 0:00:53]} Nh8 {[%emt 0:03:52]} 23. Bd5 {[%emt 0:03:18]} Qb6 {[%emt 0:03:30]} 24. Nd4 {[%emt 0:00:26]} c5 {[%emt 0:05:26]} 25. Qh5 {[%emt 0:01:47]} Re7 {[%emt 0:04:01]} 26. Nf5 {[%emt 0:02:03]} Rd7 {[%emt 0:03:50]} 27. Qg4 {[%emt 0:03:22]} Qg6 {[%emt 0:02:03]} 28. Qf4 {[%emt 0:00:30]} Rd8 {[%emt 0:01:20]} 29. Qc7 {[%emt 0:00:53]} Ra8 {[%emt 0:06:03]} 30. Nd6 {[%emt 0:00:14]} 1-0

[Event "GER-ch Youth-U12 2024"]
[Site "Willingen"]
[Date "2024.05.19"]
[Round "1"]
[White "Wettstein, Levin"]
[Black "Peglau, Paul David"]
[Result "0-1"]
[ECO "B35"]
[WhiteElo "1753"]
[BlackElo "1806"]
[Annotator "NA RC"]
[PlyCount "116"]
[EventDate "2022.06.05"]
[EventType "swiss"]
[EventRounds "9"]
[EventCountry "GER"]
[SourceTitle "playchess.com"]
[Source "ChessBase"]
[SourceQuality "1"]
[TimeControl "40/4500+30:900+30"]

1. e4 {[%emt 0:00:00]} c5 {[%emt 0:00:00]} 2. Nc3 {[%emt 0:00:00]} g6 {[%emt 0:00:00]} 3. Nf3 {[%emt 0:00:00]} Bg7 {[%emt 0:00:00]} 4. d4 {[%emt 0:00:00]} cxd4 {[%emt 0:00:00]} 5. Nxd4 {[%emt 0:00:00]} Nc6 {[%emt 0:00:00]} 6. Be3 {[%emt 0:00:00]} Nf6 {[%emt 0:00:00]} 7. Bc4 {[%emt 0:00:00]} Qa5 {[%emt 0:00:00]} 8. O-O {[%emt 0:00:00]} O-O {[%emt 0:00:00]} 9. Re1 {[%emt 0:07:32]} d6 {[%emt 0:00:00]} 10. h3 {[%emt 0:00:00]} Bd7 {[%emt 0:12:02]} 11. Be2 {[%emt 0:09:59]} Rfc8 {[%emt 0:07:35]} 12. Nf3 {[%emt 0:03:08]} Ne5 {[%emt 0:13:09]} 13. Bd2 {[%emt 0:06:29]} Qb6 {[%emt 0:11:15]} 14. Rb1 {[%emt 0:04:46]} Bc6 {[%emt 0:08:32]} 15. Nxe5 {[%emt 0:03:05]} dxe5 {[%emt 0:01:16]} 16. Be3 {[%emt 0:00:26]} Qc7 {[%emt 0:01:30]} 17. Bf3 {[%emt 0:01:27]} b5 {[%emt 0:02:08]} 18. a3 {[%emt 0:02:42]} a5 {[%emt 0:00:45]} 19. Rc1 {[%emt 0:10:13]} b4 {[%emt 0:02:29]} 20. axb4 {[%emt 0:00:45]} axb4 {[%emt 0:00:08]} 21. Nd5 {[%emt 0:02:53]} Bxd5 {[%emt 0:01:19]} 22. exd5 {[%emt 0:00:54]} e4 {[%emt 0:04:15]} 23. Be2 {[%emt 0:01:41]} Rd8 {[%emt 0:01:29]} 24. c4 {[%emt 0:07:12]} bxc3 {[%emt 0:00:26]} 25. Rxc3 {[%emt 0:01:05]} Qb7 {[%emt 0:00:40]} 26. Rb3 {[%emt 0:03:00]} Qxd5 {[%emt 0:00:44]} 27. Qxd5 {[%emt 0:02:04]} Nxd5 {[%emt 0:00:35]} 28. Bc4 {[%emt 0:01:20]} Rac8 {[%emt 0:03:25]} 29. Rd1 {[%emt 0:04:13]} e6 {[%emt 0:04:51]} 30. Bxd5 {[%emt 0:02:21]} exd5 {[%emt 0:01:15]} 31. Bd4 {[%emt 0:00:26]} Rc4 {[%emt 0:03:02]} 32. Bxg7 {[%emt 0:01:09]} Kxg7 {[%emt 0:00:06]} 33. Rb5 {[%emt 0:01:29]} d4 {[%emt 0:00:11]} 34. b3 {[%emt 0:01:12]} Rc7 {[%emt 0:02:13]} 35. Re5 {[%emt 0:02:27]} f5 {[%emt 0:00:20]} 36. b4 {[%emt 0:01:23]} d3 {[%emt 0:01:51]} 37. Kf1 {[%emt 0:01:38]} Rc2 {[%emt 0:02:17]} 38. Ra5 {[%emt 0:02:05]} Rdc8 {[%emt 0:01:54]} 39. Raa1 {[%emt 0:01:14]} Rb2 {[%emt 0:01:03]} 40. Rdc1 {[%emt 0:02:17]} Rcc2 {[%emt 0:00:51]} 41. Kg1 {[%emt 0:17:13]} Rxf2 {[%emt 0:16:12]} 42. Rc7+ {[%emt 0:00:00]} Kh6 {[%emt 0:00:00]} 43. Raa7 {[%emt 0:00:00]} Rxg2+ {[%emt 0:00:00]} 44. Kh1 {[%emt 0:00:00]} Rge2 {[%emt 0:00:00]} 45. Rxh7+ {[%emt 0:00:00]} Kg5 {[%emt 0:00:00]} 46. h4+ {[%emt 0:00:00]} Kf4 {[%emt 0:00:00]} 47. Ra1 {[%emt 0:00:00]} d2 {[%emt 0:00:00]} 48. Rf1+ {[%emt 0:00:00]} Kg3 {[%emt 0:00:00]} 49. Rh6 {[%emt 0:00:00]} Re1 {[%emt 0:00:00]} 50. Rxg6+ {[%emt 0:00:00]} Kh3 {[%emt 0:00:00]} 51. Rfg1 {[%emt 0:00:00]} d1=Q {[%emt 0:00:00]} 52. R6g3+ {[%emt 0:00:00]} Kxh4 {[%emt 0:00:00]} 53. Rxe1 {[%emt 0:00:00]} Qxe1+ {[%emt 0:00:00]} 54. Rg1 {[%emt 0:00:00]} Qxg1+ {[%emt 0:00:00]} 55. Kxg1 {[%emt 0:00:00]} f4 {[%emt 0:00:00]} 56. b5 {[%emt 0:00:00]} f3 {[%emt 0:00:00]} 57. b6 {[%emt 0:00:00]} Kg3 {[%emt 0:00:00]} 58. b7 {[%emt 0:00:00]} Rb1# {[%emt 0:00:00]} 0-1

[Event "GER-ch Youth-U12 2024"]
[Site "Willingen"]
[Date "2024.05.19"]
[Round "1"]
[White "Lanert, Theodor"]
[Black "Schmidt, Jossip"]
[Result "1-0"]
[ECO "B76"]
[WhiteElo "1742"]
[BlackElo "1603"]
[Annotator "NA RC"]
[PlyCount "137"]
[EventDate "2022.06.05"]
[EventType "swiss"]
[EventRounds "9"]
[EventCountry "GER"]
[SourceTitle "playchess.com"]
[Source "ChessBase"]
[SourceQuality "1"]
[TimeControl "40/4500+30:900+30"]

1. e4 {[%emt 0:00:00]} c5 {[%emt 0:00:00]} 2. Nf3 {[%emt 0:00:00]} Nc6 {[%emt 0:00:00]} 3. d4 {[%emt 0:00:00]} cxd4 {[%emt 0:00:00]} 4. Nxd4 {[%emt 0:00:00]} g6 {[%emt 0:00:00]} 5. Nc3 {[%emt 0:00:00]} Bg7 {[%emt 0:00:00]} 6. Be3 {[%emt 0:00:00]} Nf6 {[%emt 0:00:00]} 7. Bc4 {[%emt 0:00:00]} O-O {[%emt 0:00:00]} 8. Bb3 {[%emt 0:00:00]} d6 {[%emt 0:01:12]} 9. f3 {[%emt 0:00:00]} h5 {[%emt 0:07:37]} 10. Qd2 {[%emt 0:09:19]} Kh7 {[%emt 0:09:05]} 11. h3 {[%emt 0:01:27]} Bd7 {[%emt 0:05:58]} 12. g4 {[%emt 0:03:02]} a6 {[%emt 0:06:01]} 13. Nd5 {[%emt 0:03:23]} Nxd5 {[%emt 0:02:22]} 14. Bxd5 {[%emt 0:00:38]} Nxd4 {[%emt 0:00:47]} 15. Bxd4 {[%emt 0:00:06]} Bxd4 {[%emt 0:01:05]} 16. Qxd4 {[%emt 0:00:02]} Bc6 {[%emt 0:01:33]} 17. O-O-O {[%emt 0:02:21]} Bxd5 {[%emt 0:00:36]} 18. Qxd5 {[%emt 0:00:01]} h4 {[%emt 0:03:43]} 19. Qg5 {[%emt 0:01:22]} e6 {[%emt 0:00:18]} 20. Qf4 {[%emt 0:00:05]} Qa5 {[%emt 0:02:15]} 21. Kb1 {[%emt 0:01:18]} Qe5 {[%emt 0:01:24]} 22. Qxe5 {[%emt 0:00:10]} dxe5 {[%emt 0:00:05]} 23. Rd7 {[%emt 0:00:00]} b5 {[%emt 0:00:37]} 24. g5 {[%emt 0:02:04]} Rad8 {[%emt 0:01:44]} 25. Ra7 {[%emt 0:01:09]} Rd6 {[%emt 0:00:16]} 26. Kc1 {[%emt 0:02:53]} Kg8 {[%emt 0:01:30]} 27. Rg1 {[%emt 0:11:31]} f5 {[%emt 0:06:06]} 28. gxf6 {[%emt 0:01:04]} Rxf6 {[%emt 0:00:07]} 29. b3 {[%emt 0:00:35]} Kh8 {[%emt 0:02:25]} 30. Kb2 {[%emt 0:06:11]} Rxf3 {[%emt 0:02:47]} 31. Rxg6 {[%emt 0:00:02]} Rxh3 {[%emt 0:00:49]} 32. Rh6+ {[%emt 0:06:40]} Kg8 {[%emt 0:00:21]} 33. Rg6+ {[%emt 0:02:49]} Kh8 {[%emt 0:00:38]} 34. Rh6+ {[%emt 0:00:11]} Kg8 {[%emt 0:00:15]} 35. Rah7 {[%emt 0:00:03]} Rh1 {[%emt 0:01:24]} 36. Rxh4 {[%emt 0:00:26]} Re1 {[%emt 0:00:25]} 37. a3 {[%emt 0:08:44]} Rxe4 {[%emt 0:02:49]} 38. Rxe4 {[%emt 0:01:23]} Kxh7 {[%emt 0:00:07]} 39. c4 {[%emt 0:00:50]} bxc4 {[%emt 0:01:08]} 40. bxc4 {[%emt 0:00:01]} Kg6 {[%emt 0:00:45]} 41. Rxe5 {[%emt 0:15:10]} Kf6 {[%emt 0:15:22]} 42. Re3 {[%emt 0:00:25]} e5 {[%emt 0:00:28]} 43. Kc3 {[%emt 0:00:06]} Kf5 {[%emt 0:01:27]} 44. c5 {[%emt 0:19:37]} Rd5 {[%emt 0:02:00]} 45. Kb4 {[%emt 0:06:14]} Ke6 {[%emt 0:08:29]} 46. Rh3 {[%emt 0:00:00]} e4 {[%emt 0:00:00]} 47. Rh6+ {[%emt 0:00:00]} Kd7 {[%emt 0:00:00]} 48. Kc4 {[%emt 0:00:00]} Rd1 {[%emt 0:00:00]} 49. Rh4 {[%emt 0:00:00]} e3 {[%emt 0:00:00]} 50. Re4 {[%emt 0:00:00]} Rc1+ {[%emt 0:00:00]} 51. Kd4 {[%emt 0:00:00]} Kc6 {[%emt 0:00:00]} 52. Rxe3 {[%emt 0:00:00]} Rd1+ {[%emt 0:00:00]} 53. Kc4 {[%emt 0:00:00]} Rc1+ {[%emt 0:00:00]} 54. Kb4 {[%emt 0:00:00]} Rb1+ {[%emt 0:00:00]} 55. Ka5 {[%emt 0:00:00]} Kxc5 {[%emt 0:00:00]} 56. Rc3+ {[%emt 0:00:00]} Kd4 {[%emt 0:00:00]} 57. Rc2 {[%emt 0:00:00]} Kd3 {[%emt 0:00:00]} 58. Rc6 {[%emt 0:00:00]} Rb8 {[%emt 0:00:00]} 59. a4 {[%emt 0:00:00]} Kd4 {[%emt 0:00:00]} 60. Kxa6 {[%emt 0:00:06]} Kd5 {[%emt 0:00:00]} 61. Rb6 {[%emt 0:00:49]} Rc8 {[%emt 0:00:00]} 62. a5 {[%emt 0:01:58]} Rc7 {[%emt 0:00:00]} 63. Rb7 {[%emt 0:00:40]} Kc6 {[%emt 0:00:00]} 64. Rb6+ {[%emt 0:00:01]} Kd7 {[%emt 0:00:00]} 65. Kb5 {[%emt 0:00:23]} Kc8 {[%emt 0:00:00]} 66. a6 {[%emt 0:02:06]} Ra7 {[%emt 0:00:00]} 67. Rh6 {[%emt 0:00:29]} Kc7 {[%emt 0:00:00]} 68. Rh8 {[%emt 0:00:02]} Kd7 {[%emt 0:00:00]} 69. Rh7+ {[%emt 0:00:02]} 1-0